bitfinex/quotes_BTCUSD_20250221
["timestamp","ask_amount","ask_price","bid_price","bid_amount"]
[1740116531913,0.00089397,98447.0,98446.0,1.09678068]
[1740116532244,0.00089397,98447.0,98446.0,6.10637068]
[1740116532398,0.00089397,98447.0,98446.0,6.11385973]
[1740116532821,0.00089397,98447.0,98446.0,6.11285973]
[1740116532991,0.00089397,98447.0,98446.0,6.11185973]
[1740116533349,0.00089397,98447.0,98446.0,6.11385973]
[1740116533933,0.000985,98465.0,98446.0,5.96093273]
[1740116534149,0.000985,98465.0,98448.0,0.25500969]
[1740116534350,0.000985,98465.0,98448.0,0.98666045]
[1740116535922,0.0012508,98449.0,98448.0,0.99366045]
[1740116537159,0.0012508,98449.0,98448.0,1.00066045]
[1740116538009,0.0012508,98449.0,98448.0,1.00062045]
[1740116538559,0.0012508,98449.0,98448.0,6.36021045]
[1740116538760,0.0012508,98449.0,98448.0,5.88132045]
[1740116539174,0.0012508,98449.0,98448.0,3.69362045]
[1740116539421,0.0012508,98449.0,98448.0,1.14794045]
[1740116539616,0.0012508,98449.0,98448.0,1.11144045]
[1740116539817,0.0012508,98449.0,98448.0,1.11244045]
[1740116540286,0.0012508,98449.0,98448.0,1.11144045]
[1740116540473,0.0012508,98449.0,98448.0,1.14584934]
[1740116543150,0.0012508,98449.0,98448.0,0.44584934]
[1740116545783,0.0012508,98449.0,98448.0,0.32934934]
[1740116546245,0.0012508,98449.0,98448.0,1.02934934]
[1740116553405,0.0012508,98449.0,98448.0,1.02202934]
[1740116553603,0.0012508,98449.0,98448.0,1.02930934]
[1740116566233,0.0012508,98449.0,98448.0,0.32930934]
[1740116569275,0.0012508,98449.0,98448.0,1.02930934]
[1740116574192,0.0012508,98449.0,98448.0,1.17930934]
[1740116585414,0.0012508,98449.0,98448.0,0.47930934]
[1740116588507,0.0012508,98449.0,98448.0,1.17930934]
[1740116591225,0.0012508,98449.0,98448.0,1.17202934]
[1740116591368,0.0012508,98449.0,98448.0,1.17930934]
[1740116598882,0.0012508,98449.0,98448.0,1.17926934]
[1740116603160,0.0012508,98449.0,98448.0,0.47926934]
[1740116606129,0.0012508,98449.0,98448.0,1.17926934]
[1740116613756,0.0012508,98449.0,98448.0,1.17198934]
[1740116613964,0.0012508,98449.0,98448.0,1.17926934]
[1740116623564,0.0012508,98449.0,98448.0,0.47926934]
[1740116626336,0.0012508,98449.0,98448.0,1.17926934]
[1740116628787,0.0012508,98449.0,98448.0,1.02926934]
[1740116629714,0.0012508,98449.0,98448.0,1.02226934]
[1740116630075,0.0012508,98449.0,98448.0,1.02926934]
[1740116630483,0.0012508,98449.0,98448.0,1.26226934]
[1740116630843,0.0012508,98449.0,98448.0,1.45426934]
[1740116631250,0.0012508,98449.0,98448.0,6.46385934]
[1740116631450,0.0012508,98449.0,98448.0,6.45685934]
[1740116631673,0.0022508,98449.0,98448.0,6.45785934]
[1740116631894,0.0032508,98449.0,98448.0,6.45885934]
[1740116632071,0.0022508,98449.0,98448.0,6.45785934]
[1740116632263,0.0042508,98449.0,98448.0,6.45985934]
[1740116632451,0.0052508,98449.0,98448.0,6.45985934]
[1740116632660,0.0042508,98449.0,98448.0,6.45885934]
[1740116632866,0.0052508,98449.0,98448.0,6.45885934]
[1740116633084,0.0062508,98449.0,98448.0,6.45985934]
[1740116633779,0.0062508,98449.0,98448.0,6.45989934]
[1740116634008,0.0062508,98449.0,98448.0,4.73520934]
[1740116634347,0.0062508,98449.0,98448.0,4.74295542]
[1740116635594,0.0062508,98449.0,98448.0,4.73563542]
[1740116635798,0.0062508,98449.0,98448.0,4.74295542]
[1740116636577,0.0062508,98449.0,98448.0,4.73563542]
[1740116636789,0.0062508,98449.0,98448.0,6.26760542]
[1740116639510,0.0062508,98449.0,98448.0,6.09101542]
[1740116639725,0.0062508,98449.0,98448.0,6.03561542]
[1740116641484,0.0062508,98449.0,98448.0,6.02833542]
[1740116641688,0.0062508,98449.0,98448.0,1.16726934]
[1740116641891,0.0062508,98449.0,98448.0,1.18622932]
[1740116642684,0.0062508,98449.0,98448.0,1.17894932]
[1740116642885,0.0062508,98449.0,98448.0,1.15457856]
[1740116644087,0.0062508,98449.0,98448.0,1.18618813]
[1740116645742,0.0062508,98449.0,98448.0,1.17890813]
[1740116645992,0.0062508,98449.0,98448.0,1.18618813]
[1740116648169,0.0062508,98449.0,98448.0,1.17890813]
[1740116648411,0.0062508,98449.0,98448.0,1.18618813]
[1740116655406,0.0062508,98449.0,98448.0,1.15457856]
[1740116655759,0.0062508,98449.0,98448.0,1.1861857]
[1740116656465,0.0062508,98449.0,98448.0,1.13561858]
[1740116656819,0.0062508,98449.0,98448.0,1.16722559]
[1740116657192,0.0062508,98449.0,98448.0,1.18618815]
[1740116657315,0.0062508,98449.0,98448.0,1.15458114]
[1740116659483,0.0062508,98449.0,98448.0,1.15454114]
[1740116666610,0.0062508,98449.0,98448.0,1.18615517]
[1740116676126,0.0062508,98449.0,98448.0,1.19570517]
[1740116678587,0.0062508,98449.0,98448.0,0.49570517]
[1740116681669,0.0062508,98449.0,98448.0,1.19570517]
[1740116699608,0.0062508,98449.0,98448.0,0.49570517]
[1740116702481,0.0062508,98449.0,98448.0,1.19570517]
[1740116704735,0.0062508,98449.0,98448.0,1.15681114]
[1740116704943,0.0062508,98449.0,98448.0,1.16409114]
[1740116705743,0.0062508,98449.0,98448.0,1.16421114]
[1740116709963,0.0062508,98449.0,98448.0,1.15466114]
[1740116710348,0.2605508,98449.0,98448.0,1.15466114]
[1740116717924,0.2604008,98449.0,98448.0,1.15466114]
[1740116719417,0.2604008,98449.0,98448.0,1.00466114]
[1740116720099,0.2604008,98449.0,98448.0,0.98425225]
[1740116720282,0.2604008,98449.0,98448.0,0.98421225]
[1740116721768,0.2604008,98449.0,98448.0,0.98417225]
[1740116730224,0.2604008,98449.0,98448.0,1.01580693]
[1740116733253,0.2604008,98449.0,98448.0,1.00856693]
[1740116733487,0.2604008,98449.0,98448.0,1.01580693]
[1740116735519,0.2604008,98449.0,98448.0,0.99684437]
[1740116735941,0.2604008,98449.0,98448.0,1.27334437]
[1740116736157,0.2604008,98449.0,98448.0,6.28293437]
[1740116736158,0.16460723,98449.0,98448.0,6.28293437]
[1740116736368,0.16460723,98449.0,98448.0,6.50941602]
[1740116736369,0.07481714,98449.0,98448.0,6.50941602]
[1740116736574,0.0095501,98466.0,98460.0,0.302346]
[1740116736781,0.0095501,98466.0,98460.0,7.54445639]
[1740116736996,0.00089406,98461.0,98460.0,7.57647295]
[1740116737219,0.00089406,98461.0,98460.0,7.62147295]
[1740116737432,0.00089406,98461.0,98460.0,8.32147295]
[1740116737646,0.00089406,98461.0,98460.0,8.62411864]
[1740116737885,0.00089406,98461.0,98460.0,8.6556825]
[1740116738073,0.00089406,98461.0,98460.0,8.63820679]
[1740116738303,0.00089406,98461.0,98460.0,8.64207215]
[1740116738488,0.00089406,98461.0,98460.0,8.61050829]
[1740116738890,0.00089406,98461.0,98460.0,7.91050829]
[1740116739149,0.00089406,98461.0,98460.0,7.91150829]
[1740116739759,0.00089406,98461.0,98460.0,7.91050829]
[1740116739968,0.00089406,98461.0,98460.0,7.91150829]
[1740116740612,0.00089406,98461.0,98460.0,7.91250829]
[1740116741190,0.00089406,98461.0,98460.0,7.93416995]
[1740116741941,0.00089406,98461.0,98460.0,8.63216995]
[1740116742148,0.00089406,98461.0,98460.0,8.63116995]
[1740116742353,0.00089406,98461.0,98460.0,8.63316995]
[1740116742764,0.00089406,98461.0,98460.0,8.63216995]
[1740116743188,0.00089406,98461.0,98460.0,8.63316995]
[1740116743814,0.00089406,98461.0,98460.0,8.66518651]
[1740116744035,0.00089406,98461.0,98460.0,8.66418651]
[1740116744246,0.00089406,98461.0,98460.0,9.16418651]
[1740116744578,0.00089406,98461.0,98460.0,9.16318651]
[1740116744773,0.00089406,98461.0,98460.0,9.16518651]
[1740116745139,0.00089406,98461.0,98460.0,9.16418651]
[1740116745600,0.00089406,98461.0,98460.0,9.16518651]
[1740116746563,0.00089406,98461.0,98460.0,9.20621118]
[1740116747642,0.0008508,98467.0,98466.0,0.15]
[1740116747770,0.0008508,98467.0,98466.0,5.96223569]
[1740116747980,0.0008508,98467.0,98466.0,5.99425225]
[1740116748784,0.0008508,98467.0,98466.0,5.99811761]
[1740116748987,0.0008508,98467.0,98466.0,5.99911761]
[1740116750777,0.0008508,98467.0,98466.0,6.00011761]
[1740116751145,0.0008508,98467.0,98466.0,6.00111761]
[1740116751372,0.0008508,98467.0,98466.0,6.00011761]
[1740116751631,0.0008508,98467.0,98466.0,6.00111761]
[1740116751812,0.0008508,98467.0,98466.0,5.99911761]
[1740116752465,0.0008508,98467.0,98466.0,6.00011761]
[1740116753314,0.0008508,98467.0,98466.0,5.99911761]
[1740116753524,0.0008508,98467.0,98466.0,6.00659761]
[1740116753734,0.0008508,98467.0,98466.0,6.15993361]
[1740116754165,0.0008508,98467.0,98466.0,6.16093361]
[1740116754365,0.0008508,98467.0,98466.0,6.15893361]
[1740116754499,0.0008508,98467.0,98466.0,6.15993361]
[1740116754917,0.0008508,98467.0,98466.0,6.16093361]
[1740116755321,0.0008508,98467.0,98466.0,6.18149939]
[1740116755620,0.04411926,98499.0,98496.0,0.152289]
[1740116755865,0.04419838,98499.0,98497.0,0.11012569]
[1740116756074,0.00480289,98498.0,98497.0,0.11012569]
[1740116756263,0.04419838,98499.0,98497.0,0.11012569]
[1740116757826,0.04419838,98499.0,98497.0,0.11512569]
[1740116758010,0.04419838,98499.0,98497.0,0.11899105]
[1740116758718,0.04419838,98499.0,98497.0,0.82499105]
[1740116759061,0.04419838,98499.0,98497.0,0.81899105]
[1740116759323,0.04419838,98499.0,98497.0,0.83510924]
[1740116759534,0.04419838,98499.0,98497.0,0.83010924]
[1740116759938,0.04419838,98499.0,98497.0,0.83510924]
[1740116760166,0.04419838,98499.0,98497.0,0.13510924]
[1740116760579,0.04419838,98499.0,98497.0,0.12410924]
[1740116760961,0.04419838,98499.0,98497.0,0.13410924]
[1740116762071,0.04504898,98499.0,98497.0,0.13410924]
[1740116762336,0.04504898,98499.0,98497.0,0.12910924]
[1740116762907,0.04504898,98499.0,98497.0,0.13410924]
[1740116763305,0.03504898,98499.0,98497.0,0.13410924]
[1740116763700,0.03504898,98499.0,98497.0,0.12910924]
[1740116763903,0.03504898,98499.0,98498.0,0.00386536]
[1740116764116,0.03504898,98499.0,98498.0,0.10291105]
[1740116764876,0.11314898,98499.0,98498.0,0.10291105]
[1740116765553,0.11314898,98499.0,98498.0,0.10264569]
[1740116765959,0.11314898,98499.0,98498.0,0.10764569]
[1740116766168,0.11314898,98499.0,98498.0,0.11264569]
[1740116766315,0.11314898,98499.0,98498.0,0.10764569]
[1740116766528,0.11796047,98499.0,98498.0,0.10764569]
[1740116766860,0.11314898,98499.0,98498.0,0.11064569]
[1740116767191,0.11314898,98499.0,98498.0,0.10564569]
[1740116767415,0.11314898,98499.0,98498.0,0.10964569]
[1740116768021,0.11314898,98499.0,98498.0,0.007]
[1740116768235,0.11796047,98499.0,98498.0,0.007]
[1740116768430,0.12793535,98499.0,98498.0,0.007]
[1740116768702,0.11796047,98499.0,98498.0,0.007]
[1740116769298,0.12795266,98499.0,98498.0,0.007]
[1740116769639,0.14249351,98499.0,98498.0,0.007]
[1740116769844,0.31249351,98499.0,98498.0,0.007]
[1740116770058,0.02,98496.0,98478.0,1.02477521]
[1740116770281,0.1266,98480.0,98479.0,0.10264569]
[1740116770537,0.13141225,98480.0,98479.0,0.10264569]
[1740116772109,0.13141225,98480.0,98479.0,0.10664569]
[1740116772314,0.13141225,98480.0,98479.0,0.10964569]
[1740116774533,0.28372725,98480.0,98479.0,0.11134629]
[1740116774704,0.28372725,98480.0,98479.0,0.10734629]
[1740116775123,0.28372725,98480.0,98479.0,0.10434629]
[1740116775688,0.28372725,98480.0,98479.0,0.10734629]
[1740116775888,0.28372725,98480.0,98479.0,0.10934629]
[1740116777099,0.28372725,98480.0,98479.0,0.10634629]
[1740116777296,0.28372725,98480.0,98479.0,0.10834629]
[1740116779783,0.28372725,98480.0,98479.0,0.0057006]
[1740116780196,0.28372725,98480.0,98479.0,0.0037006]
[1740116780402,0.59565124,98480.0,98479.0,0.0037006]
[1740116780608,0.59565124,98480.0,98479.0,0.0077006]
[1740116781034,0.59565124,98480.0,98479.0,0.0076606]
[1740116781233,0.59565124,98480.0,98479.0,0.0056606]
[1740116781645,0.59565124,98480.0,98479.0,0.0096606]
[1740116796175,0.95047785,98480.0,98478.0,1.02477521]
[1740116796379,0.299163,98449.0,98434.0,0.0017014]
[1740116796599,0.76108699,98449.0,98434.0,0.0017014]
[1740116796809,0.78087028,98449.0,98434.0,0.0017014]
[1740116797016,0.402784,98435.0,98434.0,0.0017014]
[1740116797439,0.43278249,98435.0,98434.0,0.0017014]
[1740116797770,0.43278249,98435.0,98434.0,0.00174466]
[1740116798009,0.322387,98433.0,98432.0,0.06731247]
[1740116798218,0.322387,98433.0,98432.0,0.06735574]
[1740116798588,0.32763037,98433.0,98432.0,0.06735574]
[1740116799861,0.32863037,98433.0,98432.0,0.06735574]
[1740116800267,0.34317122,98433.0,98432.0,0.06735574]
[1740116800476,0.34317122,98433.0,98432.0,4.327e-05]
[1740116801128,0.44581691,98433.0,98432.0,4.327e-05]
[1740116801558,0.34317122,98433.0,98432.0,4.327e-05]
[1740116801761,0.65509521,98433.0,98432.0,4.327e-05]
[1740116810572,0.62513521,98433.0,98432.0,4.327e-05]
[1740116811195,0.62513521,98433.0,98432.0,0.00174567]
[1740116812481,0.61059436,98433.0,98432.0,0.00174567]
[1740116813975,0.46816736,98433.0,98432.0,0.00174567]
[1740116814174,0.31816736,98433.0,98432.0,0.10439136]
[1740116814652,0.31816736,98433.0,98432.0,0.00174567]
[1740116815403,0.31816736,98433.0,98432.0,0.10439136]
[1740116816382,0.31816736,98433.0,98432.0,0.10839136]
[1740116816587,0.31716736,98433.0,98432.0,0.10839136]
[1740116816795,0.31716736,98433.0,98432.0,0.10439136]
[1740116817016,0.31716736,98433.0,98432.0,0.10839136]
[1740116817219,0.31716736,98433.0,98432.0,0.11039136]
[1740116817415,0.31716736,98433.0,98432.0,0.26278036]
[1740116817666,0.31716736,98433.0,98432.0,0.10639136]
[1740116817915,0.31716736,98433.0,98432.0,0.10839136]
[1740116818048,0.31192399,98433.0,98432.0,0.10839136]
[1740116818875,0.31192399,98433.0,98432.0,0.30778036]
[1740116819082,0.31192399,98433.0,98432.0,0.41042605]
[1740116819746,0.31192399,98433.0,98432.0,0.40842605]
[1740116819969,0.31192399,98433.0,98432.0,0.40642605]
[1740116820169,0.31192399,98433.0,98432.0,0.41142605]
[1740116820384,0.31192399,98433.0,98432.0,0.41542605]
[1740116822704,0.0008512,98434.0,98433.0,0.152387]
[1740116822882,0.0008512,98434.0,98433.0,0.30999175]
[1740116823895,0.0008512,98434.0,98433.0,0.31399175]
[1740116824499,0.0008512,98434.0,98433.0,0.31799175]
[1740116824675,0.0008512,98434.0,98433.0,0.26303269]
[1740116830381,0.0008512,98434.0,98433.0,0.27047269]
[1740116836792,0.0008512,98434.0,98433.0,0.26247269]
[1740116836999,0.0008512,98434.0,98433.0,0.26647269]
[1740116837125,0.0008512,98434.0,98433.0,0.27047269]
[1740116837326,0.0008512,98434.0,98433.0,0.36911838]
[1740116837530,0.0008512,98434.0,98433.0,0.37011838]
[1740116838844,0.0008512,98434.0,98433.0,0.37511838]
[1740116839055,0.0008512,98434.0,98433.0,0.37896761]
[1740116839715,0.0008512,98434.0,98433.0,0.27632192]
[1740116841658,0.0008512,98434.0,98433.0,0.27628192]
[1740116844084,0.0008512,98434.0,98433.0,0.26884192]
[1740116844311,0.0008512,98434.0,98433.0,0.37716192]
[1740116847548,0.0008512,98434.0,98433.0,0.86886192]
[1740116847751,0.0008512,98434.0,98433.0,0.87507092]
[1740116847949,0.0008512,98434.0,98433.0,0.97771661]
[1740116848495,0.0008512,98434.0,98433.0,0.97271661]
[1740116848877,0.0008512,98434.0,98433.0,0.96999661]
[1740116849082,0.0008512,98434.0,98433.0,0.97767661]
[1740116849239,0.0008512,98434.0,98433.0,0.97267661]
[1740116849461,0.0008512,98434.0,98433.0,0.96767661]
[1740116849695,0.0008512,98434.0,98433.0,0.55917661]
[1740116849905,0.0008512,98434.0,98433.0,3.24567661]
[1740116850349,0.0008512,98434.0,98433.0,3.25267661]
[1740116850688,0.0008512,98434.0,98433.0,3.24567661]
[1740116851092,0.0008512,98434.0,98433.0,3.22900994]
[1740116852131,0.0008512,98434.0,98433.0,3.23600994]
[1740116854788,0.0008512,98434.0,98433.0,0.70040994]
[1740116855285,0.0008512,98434.0,98433.0,0.54450994]
[1740116855642,0.0008512,98434.0,98433.0,0.66920994]
[1740116855835,0.0008512,98434.0,98433.0,0.44186425]
[1740116857834,0.0008512,98434.0,98433.0,0.44356665]
[1740116867150,0.0008512,98434.0,98433.0,0.41305765]
[1740116870563,0.0008512,98434.0,98433.0,0.40537765]
[1740116870681,0.0008512,98434.0,98433.0,0.41297765]
[1740116871804,0.0008512,98434.0,98433.0,0.51562334]
[1740116876871,0.0008512,98434.0,98433.0,0.51177411]
[1740116877975,0.0008512,98434.0,98433.0,0.51173411]
[1740116878496,0.0008512,98434.0,98433.0,0.37667411]
[1740116878664,0.0008512,98434.0,98433.0,0.13834809]
[1740116878868,0.0008512,98434.0,98433.0,0.11834809]
[1740116879273,0.0008512,98434.0,98433.0,0.12590809]
[1740116879872,0.00603551,98434.0,98433.0,0.11890809]
[1740116880056,0.00603551,98434.0,98433.0,0.11190809]
[1740116880520,0.00603551,98434.0,98433.0,0.11490809]
[1740116880693,0.00603551,98434.0,98433.0,0.11790809]
[1740116880906,0.00603551,98434.0,98433.0,0.11990809]
[1740116881912,0.00603551,98434.0,98433.0,0.11390809]
[1740116882261,0.00603551,98434.0,98433.0,0.11590809]
[1740116886463,0.0008512,98434.0,98433.0,0.11040809]
[1740116886669,0.00603551,98434.0,98433.0,0.11040809]
[1740116887665,0.23862151,98434.0,98433.0,0.0132624]
[1740116888730,0.23862151,98434.0,98433.0,0.0112624]
[1740116888928,0.23862151,98434.0,98433.0,0.0122624]
[1740116889181,0.23862151,98434.0,98433.0,0.0102624]
[1740116889467,0.23862151,98434.0,98433.0,0.0112624]
[1740116891016,0.5505455,98434.0,98433.0,0.0112624]
[1740116892045,0.5505455,98434.0,98433.0,0.0037024]
[1740116899659,0.54893018,98434.0,98433.0,0.0037024]
[1740116902744,0.54893018,98434.0,98433.0,0.0036624]
[1740116903926,0.54978138,98434.0,98433.0,0.0036624]
[1740116908316,0.46958138,98434.0,98433.0,0.0036624]
[1740116917304,0.69668138,98434.0,98433.0,0.0036624]
[1740116918266,0.69668138,98434.0,98433.0,0.0026624]
[1740116918464,0.69768138,98434.0,98433.0,0.0026624]
[1740116918938,0.69768138,98434.0,98433.0,0.0016624]
[1740116919161,0.69868138,98434.0,98433.0,0.0016624]
[1740116927976,0.38675739,98434.0,98433.0,0.0016624]
[1740116928518,0.38819571,98434.0,98433.0,0.0016624]
[1740116935263,0.31109571,98434.0,98433.0,0.0016624]
[1740116948459,0.15870971,98434.0,98412.0,0.25239121]
[1740116948660,0.152402,98424.0,98420.0,0.10406038]
[1740116948852,0.152402,98424.0,98414.0,0.10406038]
[1740116948985,0.00585031,98423.0,98415.0,0.10264569]
[1740116949209,0.15289444,98434.0,98415.0,0.10264569]
[1740116949409,0.152404,98423.0,98416.0,0.10264569]
[1740116949612,0.152404,98423.0,98416.0,0.20529138]
[1740116949818,0.203196,98427.0,98416.0,0.20529138]
[1740116950018,0.0058497,98422.0,98416.0,0.20529138]
[1740116950218,0.152401,98424.0,98416.0,0.20529138]
[1740116950415,0.00584909,98421.0,98417.0,0.05495906]
[1740116950654,0.152405,98422.0,98417.0,0.05495906]
[1740116950844,0.152404,98423.0,98417.0,0.05495906]
[1740116951245,0.1582547,98422.0,98417.0,0.05495906]
[1740116951449,0.1582547,98422.0,98417.0,0.05795906]
[1740116951628,0.0058497,98422.0,98417.0,0.003]
[1740116952644,0.152406,98421.0,98417.0,0.003]
[1740116952843,0.152406,98421.0,98417.0,0.006]
[1740116952964,0.152406,98421.0,98417.0,0.003]
[1740116953167,0.00584848,98420.0,98417.0,0.002]
[1740116953361,0.00584848,98420.0,98417.0,0.005]
[1740116953587,0.152407,98421.0,98417.0,0.003]
[1740116953788,0.00584787,98419.0,98417.0,0.003]
[1740116953998,0.152407,98421.0,98417.0,0.009]
[1740116954209,0.00584727,98418.0,98417.0,0.003]
[1740116954449,0.152411,98418.0,98417.0,0.003]
[1740116954684,0.15825123,98418.0,98417.0,0.004]
[1740116954909,0.15825123,98418.0,98417.0,0.007]
[1740116956366,0.152418,98413.0,98412.0,1.10697521]
[1740116956572,0.152418,98413.0,98412.0,1.2096209]
[1740116956773,0.15752553,98413.0,98412.0,1.2096209]
[1740116956992,0.15752553,98413.0,98412.0,1.10697521]
[1740116957679,0.15752553,98413.0,98412.0,1.11297521]
[1740116957878,0.15752553,98413.0,98412.0,1.11897521]
[1740116959214,0.15752553,98413.0,98412.0,1.03677521]
[1740116962370,0.00510753,98413.0,98412.0,1.03677521]
[1740116962534,0.152418,98413.0,98412.0,1.03677521]
[1740116962734,0.00510753,98413.0,98412.0,1.03677521]
[1740116962931,0.152417,98414.0,98412.0,1.03677521]
[1740116963158,0.00510753,98413.0,98412.0,1.03673521]
[1740116963687,0.00510753,98413.0,98412.0,1.03073521]
[1740116963914,0.00510753,98413.0,98412.0,1.02473521]
[1740116964114,0.152416,98415.0,98412.0,1.03473521]
[1740116964297,0.00510753,98413.0,98412.0,1.03473521]
[1740116964460,0.152416,98415.0,98412.0,1.03473521]
[1740116964659,0.00510807,98414.0,98412.0,1.03473521]
[1740116965265,0.00510807,98414.0,98412.0,1.03573521]
[1740116965686,0.00510807,98414.0,98412.0,1.04173521]
[1740116966230,0.00510807,98414.0,98412.0,1.03573521]
[1740116966429,0.152415,98416.0,98412.0,1.02973521]
[1740116966637,0.00510753,98413.0,98412.0,1.02973521]
[1740116966840,0.152415,98416.0,98412.0,1.03473521]
[1740116967071,0.00510753,98413.0,98412.0,1.03473521]
[1740116967275,0.152415,98416.0,98412.0,1.02973521]
[1740116967479,0.00510753,98413.0,98412.0,1.02473521]
[1740116967681,0.203216,98418.0,98412.0,1.02473521]
[1740116967984,0.152413,98417.0,98412.0,1.03073521]
[1740116968183,0.15752266,98417.0,98412.0,1.03073521]
[1740116969176,0.15752266,98417.0,98412.0,1.03573521]
[1740116969583,0.15752266,98417.0,98412.0,1.02973521]
[1740116969811,0.152414,98416.0,98412.0,1.02873521]
[1740116970009,0.152414,98416.0,98412.0,1.03273521]
[1740116970289,0.00510458,98415.0,98412.0,1.02873521]
[1740116970440,0.00510458,98415.0,98412.0,1.03273521]
[1740116970654,0.00510458,98415.0,98412.0,1.02873521]
[1740116971073,0.00510458,98415.0,98412.0,1.03873521]
[1740116971274,0.00510458,98415.0,98412.0,1.03473521]
[1740116972273,0.00510458,98415.0,98412.0,1.02973521]
[1740116972667,0.00510458,98415.0,98412.0,1.03473521]
[1740116973056,0.00510458,98415.0,98413.0,0.0812]
[1740116973260,0.152408,98420.0,98413.0,0.0812]
[1740116973927,0.00510671,98419.0,98413.0,0.0812]
[1740116974149,0.00510671,98419.0,98413.0,0.18384569]
[1740116974340,0.00510671,98419.0,98413.0,0.19384569]
[1740116974558,0.00510671,98419.0,98414.0,0.0474]
[1740116975552,0.152405,98422.0,98414.0,0.0474]
[1740116975762,0.00510618,98418.0,98414.0,0.0474]
[1740116975958,0.152405,98422.0,98414.0,0.0474]
[1740116976158,0.00510564,98417.0,98414.0,0.0474]
[1740116976358,0.152406,98421.0,98414.0,0.0474]
[1740116976687,0.00510511,98416.0,98414.0,0.0474]
[1740116976825,0.152406,98421.0,98414.0,0.0474]
[1740116977231,0.00580613,98420.0,98414.0,0.0534]
[1740116977458,0.152405,98422.0,98414.0,0.0494]
[1740116977651,0.152405,98422.0,98414.0,0.0474]
[1740116977850,0.00580674,98421.0,98414.0,0.0554]
[1740116978091,0.00580674,98421.0,98414.0,0.0504]
[1740116979138,0.00580674,98421.0,98414.0,0.0474]
[1740116979275,0.152404,98423.0,98414.0,0.0474]
[1740116979479,0.00451793,98422.0,98414.0,0.0534]
[1740116979684,0.00426646,98421.0,98415.0,0.10264569]
[1740116979901,0.152394,98429.0,98415.0,0.10264569]
[1740116980118,0.152394,98429.0,98419.0,0.10406038]
[1740116980119,0.00426731,98428.0,98419.0,0.10406038]
[1740116980433,0.152394,98429.0,98419.0,0.10406038]
[1740116980712,0.011187,98434.0,98419.0,0.20812076]
[1740116980917,0.00426626,98428.0,98420.0,0.23460475]
[1740116981122,0.00089444,98434.0,98420.0,0.17964569]
[1740116981273,0.00089444,98434.0,98424.0,0.152401]
[1740116981454,0.00089444,98434.0,98424.0,1.17717621]
[1740116981657,0.00426873,98431.0,98424.0,1.17717621]
[1740116981877,0.00089444,98434.0,98425.0,0.10264569]
[1740116982088,0.00089444,98434.0,98425.0,0.11262645]
[1740116982299,0.15328044,98434.0,98425.0,0.11262645]
[1740116982704,0.00426873,98431.0,98425.0,0.11262645]
[1740116982854,0.0018508,98432.0,98425.0,0.00998076]
[1740116983055,0.00426873,98431.0,98424.0,1.02477521]
[1740116983255,0.0008508,98432.0,98424.0,1.02477521]
[1740116983566,0.00426873,98431.0,98424.0,1.17717621]
[1740116983805,0.00426873,98431.0,98424.0,1.02477521]
[1740116984018,0.0008508,98432.0,98424.0,1.02477521]
[1740116984395,0.00526873,98431.0,98424.0,1.02477521]
[1740116986161,0.00426873,98431.0,98424.0,1.02477521]
[1740116986571,0.00426873,98431.0,98427.0,0.152396]
[1740116986709,0.00426873,98431.0,98428.0,0.20529138]
[1740116986895,0.0008508,98432.0,98428.0,0.20529138]
[1740116987462,0.001,98431.0,98428.0,0.35768638]
[1740116987655,0.0008508,98432.0,98428.0,0.20529138]
[1740116988068,0.0018508,98432.0,98428.0,0.20529138]
[1740116988250,0.00427071,98431.0,98429.0,0.05495906]
[1740116988429,0.00427071,98431.0,98429.0,0.15760475]
[1740116989907,0.00427071,98431.0,98429.0,0.15860475]
[1740116991893,0.32657071,98431.0,98429.0,0.15860475]
[1740116995981,0.32657071,98431.0,98429.0,0.10364569]
[1740116996208,0.152392,98430.0,98429.0,0.10364569]
[1740116996327,0.47896171,98431.0,98429.0,0.10364569]
[1740116996784,0.47981261,98431.0,98429.0,0.10364569]
[1740116997494,0.47981261,98431.0,98429.0,0.10464569]
[1740116997847,0.47981261,98431.0,98429.0,0.10364569]
[1740116998613,0.152392,98430.0,98429.0,0.10364569]
[1740116998836,0.15665987,98430.0,98429.0,0.10364569]
[1740116999014,0.00426787,98430.0,98429.0,0.10364569]
[1740116999429,0.15665987,98430.0,98429.0,0.10364569]
[1740116999630,0.15665987,98430.0,98429.0,0.10264569]
[1740116999830,0.15665987,98430.0,98429.0,0.10364569]
[1740117000034,0.15665987,98430.0,98429.0,0.10464569]
[1740117000369,0.15665987,98430.0,98429.0,0.20729138]
[1740117002133,0.15665987,98430.0,98429.0,0.10464569]
[1740117002743,0.15665987,98430.0,98429.0,0.10264569]
[1740117003023,0.203193,98429.0,98424.0,1.02477521]
[1740117003142,0.00426787,98430.0,98410.0,0.12406038]
[1740117003143,0.00426787,98430.0,98417.0,0.00736]
[1740117003349,0.152415,98415.0,98414.0,1.02477521]
[1740117003890,0.474715,98415.0,98414.0,1.02477521]
[1740117004302,0.47897933,98415.0,98414.0,1.02477521]
[1740117005718,0.47897933,98415.0,98414.0,1.1274209]
[1740117005974,0.47897933,98415.0,98414.0,1.1284209]
[1740117006138,0.47997933,98415.0,98414.0,1.1284209]
[1740117006343,0.47997933,98415.0,98414.0,1.02577521]
[1740117006546,0.48097933,98415.0,98414.0,1.02577521]
[1740117008993,0.48097933,98415.0,98414.0,1.02747701]
[1740117014421,0.47113933,98415.0,98414.0,1.02747701]
[1740117015224,0.47113933,98415.0,98414.0,1.1301227]
[1740117015880,0.32856433,98415.0,98414.0,1.1301227]
[1740117016807,0.48097933,98415.0,98414.0,1.1301227]
[1740117017365,0.32856433,98415.0,98414.0,1.1301227]
[1740117017790,0.48097933,98415.0,98414.0,1.1301227]
[1740117018670,0.32856433,98415.0,98414.0,1.1301227]
[1740117020435,0.32856433,98415.0,98414.0,1.02747701]
[1740117021005,0.32941523,98415.0,98414.0,1.02747701]
[1740117024368,0.32741523,98415.0,98414.0,1.02647701]
[1740117024541,0.32741523,98415.0,98414.0,1.02847701]
[1740117024747,0.32741523,98415.0,98414.0,1.02947701]
[1740117025201,0.32741523,98415.0,98414.0,1.1321227]
[1740117026450,0.32741523,98415.0,98414.0,1.02947701]
[1740117027597,0.32741523,98415.0,98414.0,1.03972109]
[1740117028041,0.32741523,98415.0,98414.0,1.02947701]
[1740117029089,0.32741523,98415.0,98414.0,1.03949895]
[1740117029291,0.32741523,98415.0,98414.0,1.02947701]
[1740117029511,0.32741523,98415.0,98414.0,1.1321227]
[1740117030650,0.32741523,98415.0,98414.0,1.02947701]
[1740117031187,0.32741523,98415.0,98414.0,1.0397141]
[1740117031365,0.32741523,98415.0,98414.0,1.02947701]
[1740117033632,0.32741523,98415.0,98414.0,0.0047018]
[1740117036486,0.47983023,98415.0,98414.0,0.0047018]
[1740117037378,0.47983023,98415.0,98414.0,0.0027018]
[1740117037758,0.47983023,98415.0,98414.0,0.0017018]
[1740117038144,0.48083023,98415.0,98414.0,0.0017018]
[1740117053976,0.48194273,98415.0,98414.0,0.0017018]